bitfinex-derivatives/quotes_SOLF0:USTF0_20240820
["timestamp","ask_amount","ask_price","bid_price","bid_amount"]
[1724146378828,10.47,146.45,146.44,3.4128]
[1724146380526,0.05253214,146.46,146.45,3.4127]
[1724146395345,3.46513214,146.46,146.43,3.45727983]
[1724146395545,0.05253214,146.46,146.43,0.04417983]
[1724146395734,10.47,146.45,146.43,0.04417983]
[1724146395943,10.47,146.45,146.44,3.4129]
[1724146396242,10.47,146.45,146.43,0.04417983]
[1724146396433,10.47,146.44,146.43,0.04417983]
[1724146397640,0.05253214,146.46,146.43,0.04417983]
[1724146397947,10.47,146.44,146.43,0.04417983]
[1724146398147,13.8829,146.44,146.43,0.04417983]
[1724146400846,10.47,146.44,146.41,3.37907674]
[1724146401053,10.47,146.42,146.36,31.44947591]
[1724146401258,10.47,146.39,146.36,34.49975632]
[1724146401454,3.59151591,146.39,146.38,5.86323379]
[1724146401753,3.59151591,146.39,146.38,9.34545809]
[1724146403355,3.59151591,146.39,146.38,9.34559207]
[1724146403551,3.59151591,146.39,146.37,75.60628204]
[1724146403749,10.47,146.38,146.37,6.91258615]
[1724146403954,10.47,146.38,146.37,8.04517245]
[1724146404155,10.47,146.38,146.37,4.59376229]
[1724146404560,10.47,146.39,146.38,3.4143]
[1724146405957,10.47,146.39,146.38,6.77769357]
[1724146408157,0.04492439,146.4,146.39,3.4141]
[1724146413457,0.04492439,146.4,146.38,6.77759357]
[1724146413663,10.47,146.39,146.38,3.36339357]
[1724146413859,10.47,146.39,146.37,0.04667599]
[1724146414069,10.47,146.39,146.37,3.46107599]
[1724146414458,10.47,146.39,146.37,6.91807537]
[1724146417074,10.47,146.39,146.37,3.46107599]
[1724146417272,10.47,146.39,146.37,6.82766554]
[1724146417677,0.04492439,146.4,146.38,3.4143]
[1724146418979,0.04492439,146.4,146.39,3.4141]
[1724146426478,1.2664,146.49,146.46,3.4125]
[1724146426683,2.6386,146.52,146.46,3.46918394]
[1724146426878,2.6386,146.52,146.44,10.47]
[1724146427182,10.47,146.51,146.4,2.5907]
[1724146427377,10.47,146.51,146.44,10.47]
[1724146427778,10.47,146.5,146.44,10.47]
[1724146427980,0.04326607,146.47,146.44,0.04314826]
[1724146428884,0.04326607,146.47,146.46,3.4125]
[1724146429077,0.04326607,146.47,146.46,6.80592564]
[1724146430182,10.51326607,146.47,146.46,6.80592564]
[1724146430383,10.51326607,146.47,146.46,3.39342564]
[1724146430588,10.51326607,146.47,146.45,3.4127]
[1724146431685,10.51326607,146.47,146.45,6.78551438]
[1724146432585,0.04326607,146.47,146.46,3.4125]
[1724146437294,10.51326607,146.47,146.45,6.78531438]
[1724146437497,10.51326607,146.47,146.44,0.04314826]
[1724146437695,10.47,146.45,146.44,0.04314826]
[1724146438192,10.47,146.46,146.44,0.04314826]
[1724146438592,10.51326607,146.47,146.44,0.04314826]
[1724146439392,0.04326607,146.47,146.45,3.4125]
[1724146439589,0.04326607,146.47,146.46,3.386006]
[1724146439990,0.04326607,146.47,146.46,6.798506]
[1724146440190,0.04326607,146.47,146.46,3.4125]
[1724146440394,0.04326607,146.47,146.46,6.78452129]
[1724146444396,0.04326607,146.47,146.46,3.37202129]
[1724146444397,10.51326607,146.47,146.46,3.37202129]
[1724146444595,10.51326607,146.47,146.44,0.04314826]
[1724146445893,13.92546607,146.47,146.45,3.4127]
[1724146446086,13.92546607,146.47,146.45,6.83963509]
[1724146447394,10.51326607,146.47,146.46,3.4125]
[1724146447995,3.45566607,146.47,146.44,3.45594826]
[1724146448296,13.92566607,146.47,146.44,3.45594826]
[1724146448693,3.45566607,146.47,146.44,3.45594826]
[1724146448999,10.47,146.46,146.45,3.4127]
[1724146449199,10.47,146.46,146.45,6.86511318]
[1724146449787,10.47,146.46,146.45,3.45241318]
[1724146449989,10.47,146.46,146.44,3.45604826]
[1724146450995,0.04326607,146.47,146.45,3.4127]
[1724146451195,0.04326607,146.47,146.45,6.8483986]
[1724146453800,0.04326607,146.47,146.46,3.4125]
[1724146454602,0.04326607,146.47,146.46,6.77497075]
[1724146458298,10.47,146.51,146.48,3.4119]
[1724146458906,1.284,146.52,146.49,3.4118]
[1724146459103,11.754,146.52,146.45,1.2579]
[1724146459307,10.47,146.5,146.45,4.58489733]
[1724146459513,13.92639213,146.5,146.47,3.46391843]
[1724146459809,10.47,146.49,146.47,0.05191843]
[1724146460710,10.47,146.48,146.47,0.05191843]
[1724146460907,13.882,146.48,146.47,0.05191843]
[1724146467217,3.4118,146.49,146.47,0.05191843]
[1724146468018,13.92649213,146.5,146.47,3.46401843]
[1724146468320,3.45649213,146.5,146.47,3.46401843]
[1724146469011,3.45649213,146.5,146.47,0.05191843]
[1724146469413,3.4118,146.49,146.47,3.46411843]
[1724146470919,3.4118,146.49,146.47,0.05191843]
[1724146473711,3.412,146.48,146.47,0.05191843]
[1724146476717,13.882,146.48,146.47,0.05191843]
[1724146476916,3.4125,146.46,146.41,11.60218435]
[1724146477217,3.4125,146.46,146.41,10.47]
[1724146477615,3.4125,146.46,146.41,13.80700951]
[1724146478211,0.04722148,146.45,146.42,0.04737818]
[1724146478923,0.04722148,146.45,146.44,3.4129]
[1724146481417,10.47,146.5,146.45,3.4125]
[1724146481919,3.4121,146.48,146.45,3.4125]
[1724146482412,10.47,146.5,146.46,3.4124]
[1724146482608,0.04945856,146.48,146.46,3.4124]
[1724146485020,3.46155856,146.48,146.46,3.4124]
[1724146485630,0.04945856,146.48,146.47,3.4122]
[1724146493028,0.04945856,146.48,146.46,10.47]
[1724146493815,0.04945856,146.48,146.47,3.4122]
[1724146498837,0.04945856,146.48,146.46,13.8824]
[1724146501235,0.04945856,146.48,146.45,3.4572309]
[1724146501429,0.04945856,146.48,146.45,0.0446309]
[1724146502033,3.4122,146.47,146.45,0.0446309]
[1724146503131,3.4125,146.46,146.45,0.0446309]
[1724146504138,3.4123,146.47,146.45,0.0446309]
[1724146505132,3.4125,146.46,146.45,0.0446309]
[1724146507037,0.04945856,146.48,146.45,10.5146309]
[1724146508134,3.4123,146.47,146.45,10.5146309]
[1724146508740,3.46155856,146.48,146.45,13.9272309]
[1724146511034,0.04945856,146.48,146.47,3.4122]
[1724146511932,0.04945856,146.48,146.46,13.8823]
[1724146513843,0.04945856,146.48,146.47,3.4122]
[1724146514735,0.04945856,146.48,146.47,13.8822]
[1724146520754,0.04945856,146.48,146.47,3.4122]
[1724146521046,0.04945856,146.48,146.46,3.4124]
[1724146522848,0.04945856,146.48,146.47,3.4122]
[1724146523158,0.04945856,146.48,146.47,13.8822]
[1724146523958,3.4113,146.52,146.49,3.4116]
[1724146524160,3.4113,146.52,146.49,6.85921392]
[1724146525056,3.46164274,146.52,146.49,6.90970863]
[1724146525562,3.4114,146.51,146.49,6.90970863]
[1724146528662,0.05034274,146.52,146.49,0.05049471]
[1724146528868,0.05034274,146.52,146.49,3.53709077]
[1724146529064,0.05034274,146.52,146.49,0.05049471]
[1724146529266,3.4115,146.5,146.49,0.05049471]
[1724146529865,3.4115,146.5,146.49,3.4651354]
[1724146530063,3.4115,146.5,146.49,0.05049471]
[1724146530571,3.4115,146.5,146.49,3.40682085]
[1724146531964,0.05034274,146.52,146.49,3.40682085]
[1724146532467,3.46154274,146.52,146.49,6.81842085]
[1724146533870,3.46154274,146.52,146.5,3.4115]
[1724146534562,0.05034274,146.52,146.5,3.4115]
[1724146536861,3.46144274,146.52,146.49,6.81842085]
[1724146538978,3.46144274,146.52,146.5,3.4115]
[1724146542484,0.05034274,146.52,146.49,13.87682085]
[1724146542977,0.05034274,146.52,146.51,3.4113]
[1724146543169,1.3126,146.56,146.5,10.47]
[1724146543369,1.3126,146.56,146.52,10.47]
[1724146543570,10.47,146.53,146.49,3.35632614]
[1724146543779,10.47,146.53,146.47,10.47]
[1724146543976,3.4113,146.51,146.48,3.4119]
[1724146544178,3.45631578,146.51,146.49,3.4707765]
[1724146544682,1.2514,146.55,146.5,10.47]
[1724146544876,1.2514,146.55,146.52,10.47]
[1724146545283,3.4107,146.54,146.52,10.47]
[1724146545583,1.2514,146.55,146.52,10.47]
[1724146545781,4.6619,146.55,146.52,13.881]
[1724146546082,0.04566187,146.54,146.52,13.92672831]
[1724146546776,0.04566187,146.54,146.53,3.4108]
[1724146546979,14.4115,146.6,146.53,10.47]
[1724146547179,3.9415,146.6,146.54,10.47]
[1724146547684,14.4115,146.6,146.54,10.47]
[1724146548181,3.4099,146.57,146.56,0.0431451]
[1724146552885,62.60036709,146.66,146.56,10.5131451]
[1724146553085,10.47,146.64,146.57,10.47]
[1724146553780,10.47,146.64,146.57,13.89289545]
[1724146553990,3.4094,146.6,146.59,0.04735841]
[1724146556176,3.46019578,146.62,146.59,3.45675841]
[1724146556373,3.46019578,146.62,146.59,13.92675841]
[1724146556785,0.05139578,146.62,146.61,10.47]
[1724146556985,3.39959427,146.73,146.61,10.47]
[1724146557192,11.7177,146.72,146.66,10.47]
[1724146557388,1.2477,146.72,146.66,10.47]
[1724146558086,1.2477,146.72,146.67,10.47]
[1724146558288,3.4073,146.69,146.68,0.04994157]
[1724146560089,3.4083,146.65,146.64,10.47]
[1724146560283,10.47,146.69,146.55,81.23214276]
[1724146560484,10.47,146.69,146.6,3.409]
[1724146560684,10.47,146.68,146.61,10.47]
[1724146560990,10.47,146.68,146.63,0.0450738]
[1724146561179,3.4083,146.64,146.63,0.0450738]
[1724146564295,10.47,146.64,146.55,3.4102]
[1724146564595,10.47,146.64,146.58,10.47]
[1724146564983,3.4094,146.59,146.58,10.47]
[1724146565385,3.4091,146.61,146.58,10.47]
[1724146565582,11.8282,146.66,146.6,10.47]
[1724146565790,0.04376604,146.61,146.6,10.47]
[1724146565981,3.409,146.61,146.6,10.47]
[1724146568198,3.409,146.61,146.59,3.54020075]
[1724146568497,3.409,146.61,146.6,10.47]
[1724146569394,3.4092,146.6,146.59,0.04664511]
[1724146571901,3.4092,146.6,146.59,10.51664511]
[1724146575604,3.4092,146.6,146.59,0.04664511]
[1724146580196,3.4092,146.6,146.54,10.47]
[1724146580197,10.47,146.6,146.54,10.47]
[1724146580705,3.4104,146.55,146.54,10.47]
[1724146581701,3.45870874,146.56,146.54,10.47]
[1724146581907,3.45870874,146.56,146.55,10.47]
[1724146584303,3.45870874,146.56,146.53,3.4550609]
[1724146584511,3.45870874,146.56,146.55,10.47]
[1724146594212,3.4106,146.55,146.54,10.47]
[1724146594430,0.04850874,146.56,146.53,10.5143609]
[1724146594718,3.4106,146.54,146.53,0.0443609]
[1724146596022,3.4106,146.54,146.53,10.5143609]
[1724146602824,3.4105,146.55,146.53,13.9251609]
[1724146603027,0.04850874,146.56,146.53,13.9251609]
[1724146603028,0.04850874,146.56,146.54,10.47]
[1724146604026,0.04850874,146.56,146.54,13.8805]
[1724146607322,3.45870874,146.56,146.54,13.8805]
[1724146608118,3.45870874,146.56,146.54,10.47]
[1724146608419,3.4106,146.54,146.53,0.0443609]
[1724146608722,0.04850874,146.56,146.53,0.0443609]
[1724146609027,3.4104,146.55,146.53,0.0443609]
[1724146609527,0.04850874,146.56,146.53,3.4551609]
[1724146609826,3.45880874,146.56,146.54,10.47]
[1724146611426,3.4104,146.55,146.54,10.47]
[1724146612517,3.4106,146.54,146.53,0.0443609]
[1724146625135,3.4112,146.52,146.49,13.8817]
[1724146626135,3.45585386,146.52,146.49,13.93113558]
[1724146627747,0.04465386,146.52,146.51,3.4113]
[1724146628642,11.7836,146.6,146.52,3.4108]
[1724146628842,11.7836,146.6,146.53,10.47]
[1724146629345,3.4103,146.56,146.53,13.8806]
[1724146629943,3.4104,146.55,146.53,10.51851906]
[1724146632143,0.04538749,146.56,146.53,10.51851906]
[1724146632144,3.45558749,146.56,146.53,13.92931906]
[1724146632546,0.04538749,146.56,146.53,13.92931906]
[1724146632749,0.04538749,146.56,146.55,10.47]
[1724146634048,0.04538749,146.56,146.54,13.8804]
[1724146634740,0.04538749,146.56,146.54,10.47]
[1724146634946,3.45558749,146.56,146.53,3.45921906]
[1724146640949,3.4105,146.55,146.53,0.04851906]
[1724146641352,3.4106,146.54,146.53,0.04851906]
[1724146644548,3.4104,146.55,146.53,0.04851906]
[1724146644750,10.51538749,146.56,146.48,3.47499471]
[1724146645061,10.47,146.53,146.46,11.825]
[1724146645362,10.47,146.53,146.46,15.31724945]
[1724146645767,3.4115,146.51,146.48,13.8818]
[1724146646064,3.45575616,146.51,146.48,13.93284281]
[1724146648561,3.45575616,146.51,146.49,3.4118]
[1724146648758,0.04425616,146.51,146.49,3.4118]
[1724146649461,0.04425616,146.51,146.49,13.8818]
[1724146652973,0.04425616,146.51,146.5,3.4115]
[1724146654263,0.04425616,146.51,146.49,13.8817]
[1724146655361,6.8168,146.64,146.49,10.47]
[1724146655573,10.47,146.62,146.56,10.47]
[1724146655867,3.4096,146.59,146.56,10.47]
[1724146656063,3.4096,146.59,146.55,6.750364]
[1724146656460,0.04465873,146.58,146.56,0.05193313]
[1724146657859,3.45455873,146.58,146.56,0.05193313]
[1724146658663,3.45455873,146.58,146.56,3.39121204]
[1724146658859,3.45455873,146.58,146.56,0.05193313]
[1724146659455,3.45455873,146.58,146.56,3.41813896]
[1724146660167,3.4099,146.57,146.56,0.05193313]
[1724146660363,0.04465873,146.58,146.56,0.05193313]
[1724146660665,10.51465873,146.58,146.56,0.05193313]
[1724146660970,3.4099,146.57,146.56,0.05193313]
[1724146665060,10.51465873,146.58,146.51,3.4112]
[1724146665260,10.47,146.54,146.51,3.4112]
[1724146665858,3.4109,146.53,146.5,3.371323]
[1724146666167,13.93132822,146.53,146.5,0.04597537]
[1724146666473,0.05042822,146.53,146.5,6.88222767]
[1724146666765,0.05042822,146.53,146.5,3.45737537]
[1724146667163,0.05042822,146.53,146.51,3.4461167]
[1724146668773,3.46132822,146.53,146.5,3.45737537]
[1724146669474,3.4112,146.52,146.5,3.42219458]
[1724146670159,3.4112,146.52,146.5,0.04597537]
[1724146670361,13.8811,146.52,146.5,0.04597537]
[1724146670571,10.47,146.52,146.5,0.04597537]
[1724146670963,3.4113,146.51,146.5,0.04597537]
[1724146671972,13.8813,146.51,146.5,0.04597537]
[1724146672163,3.4118,146.49,146.44,37.73]
[1724146672570,3.4118,146.49,146.47,3.4122]
[1724146673370,3.45887627,146.49,146.47,3.46379171]
[1724146674372,3.45887627,146.49,146.47,13.93379171]
[1724146677063,3.412,146.48,146.47,0.05159171]
[1724146679184,13.882,146.48,146.47,0.05159171]
[1724146679478,10.47,146.48,146.41,15.08699722]
[1724146679675,10.47,146.48,146.41,11.7484]
[1724146679875,10.47,146.48,146.43,3.4131]
[1724146680270,3.4126,146.46,146.43,3.4131]
[1724146680467,10.47,146.49,146.44,13.8829]
[1724146680870,3.46002185,146.47,146.44,13.92872542]
[1724146682881,3.46002185,146.47,146.45,3.4127]
[1724146683280,3.46002185,146.47,146.44,13.92862542]
[1724146684081,0.04762185,146.47,146.44,10.51582542]
[1724146684785,0.04762185,146.47,146.46,3.4125]
[1724146687177,0.04762185,146.47,146.45,3.4126]
[1724146687582,3.45992185,146.47,146.45,3.4126]
[1724146687779,0.04762185,146.47,146.44,0.04582542]
[1724146687990,3.4126,146.46,146.44,0.04582542]
[1724146690284,3.4127,146.45,146.44,0.04582542]
[1724146695490,3.4125,146.46,146.44,3.45872542]
[1724146697089,0.04762185,146.47,146.44,0.04582542]
[1724146697394,0.04762185,146.47,146.46,10.47]
[1724146698190,0.04762185,146.47,146.46,13.8825]
[1724146706399,3.4117,146.5,146.47,3.4122]
[1724146707402,3.46217057,146.5,146.47,3.4122]
[1724146707609,3.46217057,146.5,146.47,3.46473951]
[1724146708102,3.4118,146.49,146.47,3.46473951]
[1724146708797,0.05047057,146.5,146.47,10.52253951]
[1724146708992,0.05047057,146.5,146.48,10.47]
[1724146709197,0.05047057,146.5,146.48,13.81803514]
[1724146709498,0.05047057,146.5,146.48,3.34803514]
[1724146709701,0.05047057,146.5,146.47,0.05253951]
[1724146709999,0.05047057,146.5,146.48,3.412]
[1724146710207,0.05047057,146.5,146.49,3.3845232]
[1724146711902,0.05047057,146.5,146.47,0.05253951]
[1724146712801,3.4119,146.49,146.47,0.05253951]
[1724146713300,3.4119,146.49,146.48,3.3599656]
[1724146714207,3.4119,146.49,146.47,3.46473951]
[1724146715897,0.05047057,146.5,146.48,3.412]
[1724146716102,0.05047057,146.5,146.49,3.32711136]
[1724146718110,3.46197057,146.5,146.49,3.32711136]
[1724146718308,3.46197057,146.5,146.47,3.46463951]
[1724146718905,3.46197057,146.5,146.48,3.37110904]
[1724146719807,3.4118,146.49,146.48,3.37110904]
[1724146723513,0.05047057,146.5,146.48,3.37110904]
[1724146723514,3.46217057,146.5,146.48,3.37110904]
[1724146723718,3.46217057,146.5,146.48,3.412]
[1724146723900,0.05047057,146.5,146.48,3.412]
[1724146724311,0.05047057,146.5,146.48,6.76026361]
[1724146724500,0.05047057,146.5,146.49,3.4118]
[1724146727418,0.05047057,146.5,146.48,3.34826361]
[1724146727624,0.05047057,146.5,146.47,0.05253951]
[1724146728014,3.4119,146.49,146.47,0.05253951]
[1724146728211,0.05047057,146.5,146.47,0.05253951]
[1724146728212,10.47,146.48,146.47,0.05253951]
[1724146728416,10.47,146.48,146.4,13.81610176]
[1724146728618,3.4129,146.45,146.41,3.4136]
[1724146728918,10.47,146.46,146.41,3.4136]
[1724146729114,1.2891,146.49,146.4,3.34610176]
[1724146729115,10.47,146.45,146.4,3.34610176]
[1724146729316,10.47,146.45,146.38,10.47]
[1724146729523,0.04976099,146.43,146.4,0.04328107]
[1724146729714,0.04976099,146.43,146.4,13.92708107]
[1724146730325,0.04976099,146.43,146.41,3.4136]
[1724146731725,0.04976099,146.43,146.42,3.4134]
[1724146737736,0.04976099,146.43,146.42,13.8834]
[1724146740639,3.4124,146.47,146.44,3.4128]
[1724146741839,3.46295818,146.47,146.44,3.46147059]
[1724146742236,0.05055818,146.47,146.44,0.04867059]
[1724146742738,3.4127,146.45,146.44,0.04867059]
[1724146768754,0.05055818,146.47,146.44,0.04867059]
[1724146769248,0.05055818,146.47,146.44,10.51867059]
[1724146769955,3.46295818,146.47,146.45,3.4127]
[1724146771255,3.46295818,146.47,146.44,10.51867059]
[1724146771559,3.4125,146.46,146.44,0.04867059]
[1724146772757,3.4127,146.45,146.44,0.04867059]
[1724146776457,3.4126,146.46,146.44,0.04867059]
[1724146777751,3.46285818,146.47,146.44,3.46147059]
[1724146779466,3.4126,146.46,146.44,0.04867059]
[1724146782462,3.4126,146.46,146.44,3.46157059]
[1724146782962,3.4126,146.46,146.44,0.04867059]
[1724146787457,3.46295818,146.47,146.44,3.46147059]
[1724146790456,3.4125,146.46,146.44,3.46147059]
[1724146798260,3.4125,146.46,146.44,0.04867059]
[1724146800767,3.4127,146.45,146.44,0.04867059]
[1724146807668,3.4127,146.45,146.38,3.3913538]
[1724146807669,3.4132,146.44,146.38,13.8613538]
[1724146807871,10.47,146.45,146.38,10.47]
[1724146808271,3.4136,146.42,146.39,3.414]
[1724146808974,3.46133845,146.42,146.39,3.46390914]
[1724146810669,3.4137,146.41,146.39,3.46390914]
[1724146810865,0.04773845,146.42,146.39,0.04990914]
[1724146811373,3.4139,146.4,146.39,3.45026894]
[1724146812669,3.4139,146.4,146.39,0.04990914]
[1724146812879,3.4139,146.4,146.39,3.44606481]
[1724146816170,3.4139,146.4,146.39,0.04990914]
[1724146816575,3.4139,146.4,146.39,3.4184275]
[1724146819977,3.4139,146.4,146.39,0.04990914]
[1724146820179,3.4139,146.4,146.39,3.47632754]
[1724146821080,3.4139,146.4,146.39,0.04990914]
[1724146821586,3.4139,146.4,146.39,3.47803375]
[1724146821787,3.4138,146.41,146.39,3.47803375]
[1724146822785,3.4138,146.41,146.39,0.04990914]
[1724146823087,3.4138,146.41,146.39,3.43844959]
[1724146824886,3.4139,146.4,146.39,0.04990914]
[1724146825488,3.4139,146.4,146.39,3.4568767]
[1724146829200,3.4139,146.4,146.39,0.04990914]
[1724146829597,3.4139,146.4,146.39,3.4968021]
[1724146829796,3.4139,146.4,146.39,0.04990914]
[1724146830396,0.04773845,146.42,146.39,0.04990914]
[1724146830397,3.4137,146.41,146.39,3.5087456]
[1724146830700,3.4137,146.41,146.39,0.04990914]
[1724146831195,3.4137,146.41,146.39,3.39988916]
[1724146831501,3.46123845,146.42,146.39,3.46400914]
[1724146831896,3.46123845,146.42,146.39,8.83940816]
[1724146832305,3.46123845,146.42,146.39,5.42530816]
[1724146833199,3.46123845,146.42,146.39,8.83930816]
[1724146834499,3.4136,146.41,146.39,8.83930816]
[1724146836802,3.46113845,146.42,146.4,3.4139]
[1724146837001,3.46113845,146.42,146.4,10.47]
[1724146837205,0.04773845,146.42,146.4,10.47]
[1724146838705,0.04773845,146.42,146.41,13.8836]
[1724146838908,1.3813,146.47,146.41,10.47]
[1724146839103,1.3813,146.47,146.43,10.47]
[1724146839801,3.45822144,146.46,146.44,0.04869901]
[1724146842101,3.4127,146.45,146.44,0.04869901]
[1724146846410,3.45822144,146.46,146.44,0.04869901]
[1724146850626,0.04562144,146.46,146.45,13.8827]
[1724146851016,0.04562144,146.46,146.44,3.46149901]
[1724146851322,0.04562144,146.46,146.45,10.47]
[1724146851819,0.04562144,146.46,146.44,3.46149901]
[1724146852922,3.45812144,146.46,146.44,3.46149901]
[1724146859821,3.45812144,146.46,146.44,0.04869901]
[1724146859822,3.4127,146.45,146.44,0.04869901]
[1724146872822,3.45822144,146.46,146.44,13.93159901]
[1724146873530,3.45822144,146.46,146.44,10.51869901]
[1724146873826,3.45822144,146.46,146.44,0.04869901]
[1724146874224,0.04562144,146.46,146.44,0.04869901]
[1724146874420,0.04562144,146.46,146.44,10.51869901]
[1724146874836,3.45822144,146.46,146.44,10.51869901]
[1724146875831,0.04562144,146.46,146.44,13.93139901]
[1724146876128,0.04562144,146.46,146.45,10.47]
[1724146876538,0.04562144,146.46,146.45,13.8827]
[1724146880132,0.04562144,146.46,146.44,13.93149901]
[1724146880838,3.45812144,146.46,146.44,13.93149901]
[1724146887638,0.04562144,146.46,146.45,3.4127]
[1724146891637,0.04562144,146.46,146.44,3.46149901]
[1724146892544,3.45822144,146.46,146.44,0.04869901]
[1724146894040,3.4127,146.45,146.44,0.04869901]
[1724146898438,3.45822144,146.46,146.44,0.04869901]
[1724146900545,0.04562144,146.46,146.44,13.93159901]
[1724146908254,3.45812144,146.46,146.44,13.93159901]
[1724146908646,3.45812144,146.46,146.44,0.04869901]
[1724146912351,3.45812144,146.46,146.44,13.93159901]
[1724146913764,0.04562144,146.46,146.44,13.93159901]
[1724146914460,3.45812144,146.46,146.44,3.46159901]
[1724146914658,10.51562144,146.46,146.44,0.04869901]
[1724146915266,3.4127,146.45,146.44,0.04869901]
[1724146926775,0.04562144,146.46,146.44,0.04869901]
[1724146927666,3.4127,146.45,146.44,0.04869901]
[1724146930875,3.45812144,146.46,146.44,3.46159901]
[1724146931076,3.45812144,146.46,146.44,0.04869901]
[1724146937374,3.4127,146.45,146.44,0.04869901]
[1724146939581,3.4135,146.42,146.39,5.37539902]
[1724146939779,10.47,146.42,146.39,5.37539902]
[1724146940284,3.4139,146.4,146.39,5.37539902]
[1724146940879,3.4139,146.4,146.39,1.98856478]
[1724146941076,3.4139,146.4,146.39,5.44125887]
[1724146941276,3.4139,146.4,146.39,1.98856478]
[1724146941775,3.4139,146.4,146.39,5.45183739]
[1724146945380,3.4139,146.4,146.39,5.33456266]
[1724146945787,3.4139,146.4,146.39,1.98856478]
[1724146946084,3.4139,146.4,146.39,5.44375288]
[1724146952777,3.4139,146.4,146.39,1.98856478]
[1724146954994,13.8839,146.4,146.39,1.98856478]
[1724146957892,3.4139,146.4,146.39,1.98856478]
[1724146963394,3.45835498,146.41,146.39,1.98856478]
[1724146964587,3.4139,146.4,146.39,1.98856478]
[1724146965890,0.04465498,146.41,146.39,5.40266478]
[1724146966100,17.0429,146.63,146.4,10.47]
[1724146966101,3.37807867,146.5,146.4,10.47]
[1724146966400,10.47,146.48,146.41,10.47]
[1724146966592,10.47,146.48,146.43,10.47]
[1724146966795,10.47,146.48,146.43,13.88869616]
[1724146967095,3.4126,146.46,146.43,17.30179616]
[1724146967284,0.04763356,146.47,146.44,0.0437665]
[1724146967484,3.4127,146.45,146.44,0.0437665]
[1724146970986,3.4125,146.46,146.44,0.0437665]
[1724146978915,3.4127,146.45,146.44,0.0437665]
[1724146981116,0.04763356,146.47,146.44,0.0437665]
[1724146981908,3.4127,146.45,146.44,0.0437665]
[1724146984104,3.4126,146.46,146.44,0.0437665]
[1724146989113,3.4127,146.45,146.44,0.0437665]
[1724146992624,0.04763356,146.47,146.44,0.0437665]
[1724146994123,3.4127,146.45,146.44,0.0437665]
[1724146995822,0.04763356,146.47,146.44,0.0437665]
[1724146996119,3.4125,146.46,146.44,0.0437665]
[1724146996814,3.46003356,146.47,146.44,3.4565665]
[1724146998618,0.04763356,146.47,146.44,0.0437665]
[1724146998820,0.04763356,146.47,146.44,10.5137665]
[1724147000227,0.04763356,146.47,146.45,3.4126]
[1724147000618,0.04763356,146.47,146.44,0.0437665]
[1724147000818,0.04763356,146.47,146.45,3.4127]
[1724147001719,0.04763356,146.47,146.46,3.4125]
[1724147009528,4.0818,146.55,146.46,10.47]
[1724147009726,10.47,146.54,146.46,10.47]
[1724147010033,10.47,146.54,146.5,3.4115]
[1724147010834,3.4111,146.53,146.5,3.4115]
[1724147011127,3.4572465,146.53,146.51,0.04629466]
[1724147011734,3.4111,146.52,146.51,0.04629466]
[1724147012428,0.0461465,146.53,146.51,0.04629466]
[1724147012629,1.2591,146.59,146.51,3.51880479]
[1724147012834,10.47,146.57,146.51,10.47]
[1724147013025,3.4106,146.54,146.51,13.8812]
[1724147013433,3.4106,146.54,146.52,3.42646919]
[1724147013629,3.45822298,146.54,146.52,3.47216633]
[1724147013831,0.04762298,146.54,146.52,3.47216633]
[1724147018027,3.45832298,146.54,146.52,0.04569714]
[1724147018430,0.04762298,146.54,146.52,0.04569714]
[1724147018636,10.51762298,146.54,146.52,0.04569714]
[1724147019834,3.4108,146.53,146.52,0.04569714]
[1724147020031,0.04762298,146.54,146.52,3.44816995]
[1724147020427,0.04762298,146.54,146.52,0.04569714]
[1724147021643,3.45842298,146.54,146.52,0.04569714]
[1724147022439,3.4108,146.53,146.52,0.04569714]
[1724147028741,3.45832298,146.54,146.52,0.04569714]
[1724147029144,0.04762298,146.54,146.52,0.04569714]
[1724147030741,3.4108,146.53,146.52,0.04569714]
[1724147038549,13.8808,146.53,146.52,0.04569714]
[1724147038745,10.47,146.53,146.46,1.2487]
[1724147038950,10.47,146.51,146.46,1.2487]
[1724147039250,10.47,146.51,146.46,4.661]
[1724147039648,3.4118,146.49,146.46,4.661]